bitfinex/quotes_BTCUSD_20251104
["timestamp","ask_amount","ask_price","bid_price","bid_amount"]
[1762283500501,0.30817602,101200.0,101160.0,0.79020994]
[1762283500710,0.19766811,101180.0,101150.0,0.26266834]
[1762283500932,0.19766811,101180.0,101160.0,0.19770635]
[1762283501141,0.19766811,101180.0,101160.0,0.19900777]
[1762283501347,0.19766811,101180.0,101150.0,0.26266834]
[1762283501518,0.19768706,101170.0,101150.0,0.93239129]
[1762283501767,0.002,101160.0,101150.0,0.93239129]
[1762283501967,0.19768706,101170.0,101150.0,0.95639129]
[1762283502167,0.19768706,101170.0,101150.0,0.93239129]
[1762283502368,0.19767222,101180.0,101160.0,0.2237066]
[1762283502587,0.19768706,101170.0,101150.0,0.25278108]
[1762283502809,0.1977066,101160.0,101150.0,0.0550559]
[1762283503027,0.1977066,101160.0,101150.0,0.0570559]
[1762283503238,0.1977066,101160.0,101150.0,0.0550559]
[1762283503978,0.29547265,101160.0,101150.0,0.04518486]
[1762283504182,0.91034955,101160.0,101150.0,0.00014486]
[1762283504402,0.1977066,101160.0,101150.0,0.00014486]
[1762283504608,0.2406266,101160.0,101150.0,0.00014486]
[1762283504820,0.40396265,101160.0,101150.0,0.00014486]
[1762283505025,0.97891955,101160.0,101150.0,0.00014486]
[1762283505237,1.01510183,101160.0,101150.0,0.00014486]
[1762283505440,0.71757493,101160.0,101150.0,0.00014486]
[1762283505638,1.35510183,101160.0,101150.0,0.00014486]
[1762283505908,1.35210183,101160.0,101150.0,0.00014486]
[1762283506323,1.35510183,101160.0,101150.0,0.00014486]
[1762283506525,1.37293415,101160.0,101150.0,0.00014486]
[1762283506954,1.35510183,101160.0,101150.0,0.00014486]
[1762283507775,0.71757493,101160.0,101150.0,0.00014486]
[1762283508133,0.19776187,101140.0,101120.0,0.24802325]
[1762283508330,0.19776525,101130.0,101120.0,0.04083585]
[1762283508557,0.19776525,101130.0,101120.0,0.19826836]
[1762283508766,0.19776525,101130.0,101120.0,0.00048355]
[1762283509099,0.92754147,101130.0,101120.0,0.00048355]
[1762283509328,0.87821215,101130.0,101120.0,0.00248355]
[1762283509539,1.25439443,101130.0,101120.0,0.00248355]
[1762283509759,1.25439443,101130.0,101120.0,0.00048355]
[1762283509952,1.25439443,101130.0,101120.0,0.00248355]
[1762283510155,1.34897049,101130.0,101120.0,0.00248355]
[1762283510402,1.34897049,101130.0,101120.0,0.00048355]
[1762283510607,1.25439443,101130.0,101120.0,0.00048355]
[1762283511020,0.57394753,101130.0,101120.0,0.00048355]
[1762283511361,0.19776525,101130.0,101120.0,0.00048355]
[1762283511771,0.19976525,101130.0,101120.0,0.00048355]
[1762283511993,0.91012443,101130.0,101120.0,0.00048355]
[1762283512194,0.84882443,101130.0,101120.0,0.00048355]
[1762283512405,0.19976525,101130.0,101120.0,0.00048355]
[1762283514489,0.19776525,101130.0,101120.0,0.00048355]
[1762283514945,0.19876525,101130.0,101120.0,0.00048355]
[1762283515377,0.29988525,101130.0,101120.0,0.00048355]
[1762283515810,0.23858525,101130.0,101120.0,0.00048355]
[1762283516643,1.21184215,101130.0,101120.0,0.00048355]
[1762283517053,1.24802443,101130.0,101120.0,0.00048355]
[1762283517671,0.19876525,101130.0,101120.0,0.00048355]
[1762283518285,0.19876525,101130.0,101120.0,0.19826836]
[1762283518695,0.001,101130.0,101120.0,0.00048355]
[1762283518901,0.19876525,101130.0,101120.0,0.00048355]
[1762283519499,0.19876525,101130.0,101120.0,0.19826836]
[1762283519975,0.001,101130.0,101120.0,0.19826836]
[1762283520404,0.19876525,101130.0,101120.0,0.00048355]
[1762283520824,1.30641821,101130.0,101120.0,0.00048355]
[1762283521256,1.21184215,101130.0,101120.0,0.00048355]
[1762283521461,1.15054215,101130.0,101120.0,0.00048355]
[1762283521670,1.21184215,101130.0,101120.0,0.00048355]
[1762283522100,1.21184215,101130.0,101120.0,1e-08]
[1762283522101,1.31425721,101130.0,101120.0,1e-08]
[1762283522317,1.31325721,101130.0,101120.0,1e-08]
[1762283522532,1.27907493,101130.0,101120.0,1e-08]
[1762283522963,1.23407493,101130.0,101120.0,1e-08]
[1762283523171,1.21284215,101130.0,101120.0,1e-08]
[1762283523408,0.53976525,101130.0,101120.0,1e-08]
[1762283523632,0.57758525,101130.0,101120.0,1e-08]
[1762283524041,0.003,101130.0,101120.0,0.19878482]
[1762283524252,0.19776525,101130.0,101120.0,1e-08]
[1762283524470,0.19774667,101140.0,101120.0,1e-08]
[1762283524673,0.23879432,101150.0,101120.0,1e-08]
[1762283524674,0.29547271,101160.0,101130.0,0.19776525]
[1762283524899,0.20759199,101160.0,101130.0,0.5719569]
[1762283525106,0.22883706,101170.0,101150.0,0.19772421]
[1762283525311,0.19770718,101160.0,101130.0,0.7795748]
[1762283525518,0.19772863,101150.0,101130.0,0.7795748]
[1762283525748,0.19772863,101150.0,101140.0,0.19774569]
[1762283525954,0.19770718,101160.0,101140.0,0.19774569]
[1762283526170,0.30532164,101180.0,101150.0,0.19772565]
[1762283526384,0.21890081,101180.0,101160.0,0.00784969]
[1762283526592,0.30536436,101200.0,101170.0,0.19768706]
[1762283526800,0.19766752,101180.0,101170.0,0.19768706]
[1762283527046,0.20753131,101190.0,101160.0,0.20757717]
[1762283527255,0.22988863,101180.0,101160.0,0.19770634]
[1762283527689,0.19768706,101170.0,101160.0,0.01187104]
[1762283527901,0.19768706,101170.0,101160.0,0.20957764]
[1762283528110,0.00048277,101180.0,101170.0,0.19768706]
[1762283528353,0.19815029,101180.0,101170.0,0.19768706]
[1762283528562,0.19768706,101170.0,101160.0,0.78353454]
[1762283528808,0.19768706,101170.0,101160.0,0.20757764]
[1762283529222,0.19768706,101170.0,101160.0,0.00987104]
[1762283529448,0.23037029,101180.0,101150.0,0.20761017]
[1762283529649,0.19815029,101180.0,101160.0,0.1977066]
[1762283529853,0.29591634,101180.0,101160.0,0.1977066]
[1762283530077,0.19868706,101170.0,101160.0,0.1977066]
[1762283530292,0.1977066,101160.0,101140.0,0.00987104]
[1762283530502,0.19772614,101150.0,101140.0,0.00987104]
[1762283530914,0.19770756,101160.0,101140.0,0.20761673]
[1762283531118,0.33801971,101180.0,101150.0,0.19772614]
[1762283531354,0.19768799,101170.0,101150.0,0.19772614]
[1762283531567,0.1976873,101170.0,101140.0,1.01622335]
[1762283531783,0.13046882,101180.0,101160.0,0.1977066]
[1762283531990,0.21938796,101180.0,101160.0,0.20757764]
[1762283532164,0.001,101170.0,101160.0,0.23157764]
[1762283532399,0.001,101170.0,101160.0,0.20757764]
[1762283532616,0.19815272,101180.0,101160.0,0.20757764]
[1762283532792,0.19465272,101180.0,101160.0,0.20757764]
[1762283533020,0.19768706,101170.0,101160.0,0.20757764]
[1762283533221,0.19768706,101170.0,101160.0,0.00987104]
[1762283533432,0.19465272,101180.0,101170.0,0.19768484]
[1762283533433,0.19767334,101180.0,101170.0,0.19768484]
[1762283533559,0.19766752,101180.0,101170.0,0.19768484]
[1762283533762,0.19766752,101180.0,101160.0,0.20757764]
[1762283533998,0.19766752,101180.0,101170.0,0.19768706]
[1762283534205,0.19766752,101180.0,101160.0,0.20757764]
[1762283534613,0.19866752,101180.0,101170.0,0.19768706]
[1762283535381,0.19866752,101180.0,101160.0,0.20757761]
[1762283535486,0.001,101180.0,101170.0,0.19768706]
[1762283535699,0.001,101180.0,101170.0,0.9724064]
[1762283536012,0.02123199,101210.0,101200.0,0.19762845]
[1762283536205,0.02137677,101210.0,101200.0,0.98221883]
[1762283536461,0.19775371,101210.0,101200.0,0.78459038]
[1762283536668,0.19775371,101210.0,101200.0,0.00987104]
[1762283537067,0.19764368,101200.0,101180.0,0.05487104]
[1762283537267,0.19764368,101200.0,101180.0,1.02725662]
[1762283537468,0.19764798,101190.0,101180.0,0.25253728]
[1762283537782,0.19764368,101200.0,101180.0,0.25253728]
[1762283538065,0.19764798,101190.0,101180.0,0.05487104]
[1762283538270,0.19764798,101190.0,101180.0,0.2525385]
[1762283538479,0.19764798,101190.0,101180.0,0.045]
[1762283538687,0.19768706,101170.0,101160.0,0.00987104]
[1762283539113,0.30865037,101190.0,101170.0,0.19768483]
[1762283539114,0.20753037,101190.0,101170.0,0.19768483]
[1762283539308,0.20753037,101190.0,101180.0,0.003]
[1762283539309,0.19764798,101190.0,101180.0,0.003]
[1762283539510,0.19764368,101200.0,101180.0,0.9852579]
[1762283539730,0.19764798,101190.0,101180.0,0.00987104]
[1762283539912,0.19768706,101170.0,101160.0,0.22046132]
[1762283540262,0.19768706,101170.0,101160.0,0.00987104]
[1762283540669,0.19771581,101160.0,101140.0,0.20761528]
[1762283540860,0.19771581,101160.0,101140.0,0.98233462]
[1762283541064,0.19771581,101160.0,101140.0,1.00633462]
[1762283541399,0.19772614,101150.0,101140.0,0.00987104]
[1762283541615,0.19771581,101160.0,101140.0,0.20761673]
[1762283541811,0.19771581,101160.0,101140.0,0.2080995]
[1762283541976,0.1977066,101160.0,101150.0,0.19772614]
[1762283542178,0.19772614,101150.0,101140.0,0.01035381]
[1762283542839,0.19772614,101150.0,101140.0,0.00048277]
[1762283543041,0.32929614,101150.0,101140.0,0.00048277]
[1762283543700,0.26660614,101150.0,101140.0,0.00048277]
[1762283544101,0.26660614,101150.0,101140.0,0.00348277]
[1762283544469,1.44401548,101150.0,101140.0,0.00048277]
[1762283544907,1.48019776,101150.0,101140.0,0.00048277]
[1762283545109,1.48019776,101150.0,101140.0,0.00148277]
[1762283545315,1.48019776,101150.0,101140.0,1e-08]
[1762283545494,1.5960007,101150.0,101140.0,1e-08]
[1762283545745,1.60600069,101150.0,101140.0,1e-08]
[1762283545979,0.82128136,101150.0,101140.0,1e-08]
[1762283546202,0.7267053,101150.0,101140.0,1e-08]
[1762283546407,0.53776525,101130.0,101120.0,0.20767377]
[1762283546622,0.00048247,101130.0,101120.0,0.20767377]
[1762283546830,0.00048247,101130.0,101120.0,0.98239311]
[1762283547047,0.00048247,101130.0,101120.0,0.99226415]
[1762283547266,0.002,101150.0,101120.0,1.36844643]
[1762283547474,0.002,101150.0,101140.0,1.31246503]
[1762283547677,0.19766811,101180.0,101160.0,0.19768898]
[1762283547893,0.18876122,101180.0,101160.0,0.19768898]
[1762283548101,0.18876122,101180.0,101160.0,0.22168898]
[1762283548312,0.18876122,101180.0,101170.0,0.19768706]
[1762283548538,0.18876122,101180.0,101160.0,0.2217066]
[1762283548740,0.19768706,101170.0,101150.0,0.98229933]
[1762283548971,0.20758651,101190.0,101160.0,0.1977066]
[1762283549186,0.19766752,101180.0,101170.0,0.19768661]
[1762283550437,0.20758651,101190.0,101170.0,0.19768661]
[1762283550640,0.19766752,101180.0,101170.0,0.001]
[1762283550843,0.69817313,101200.0,101180.0,0.19766752]
[1762283550844,0.19771708,101200.0,101180.0,0.19766752]
[1762283551081,0.02137608,101200.0,101190.0,0.19764798]
[1762283551285,0.00014475,101200.0,101190.0,0.19764798]
[1762283551458,0.00014475,101200.0,101190.0,0.97236732]
[1762283551662,0.00014475,101200.0,101190.0,0.99636732]
[1762283551871,0.00014475,101200.0,101190.0,0.97236732]
[1762283552279,0.00014475,101200.0,101190.0,0.99636732]
[1762283552631,0.00014475,101200.0,101190.0,0.97236732]
[1762283552834,0.00014475,101200.0,101190.0,0.19764798]
[1762283553301,0.1977732,101200.0,101190.0,0.19864798]
[1762283553514,0.02137608,101200.0,101190.0,0.19764798]
[1762283553720,0.21900453,101200.0,101190.0,0.19764798]
[1762283553932,0.02123133,101200.0,101190.0,1.41013337]
[1762283554133,0.00025082,101220.0,101210.0,0.19760893]
[1762283554341,0.00025082,101220.0,101210.0,0.98219931]
[1762283555375,0.00025082,101220.0,101210.0,1.00619931]
[1762283555521,0.00025082,101220.0,101210.0,1.05763637]
[1762283556340,0.00025082,101220.0,101210.0,0.98519931]
[1762283556922,0.00025082,101220.0,101210.0,1.00619931]
[1762283557059,0.00125082,101220.0,101210.0,1.01119931]
[1762283557272,0.00125082,101220.0,101210.0,0.98219931]
[1762283557529,0.0004,101240.0,101230.0,0.19756989]
[1762283557889,0.00088298,101240.0,101230.0,1.14892632]
[1762283558174,0.0013845,101240.0,101230.0,1.48892632]
[1762283558612,0.0013845,101240.0,101230.0,0.69020698]
[1762283559113,0.19893487,101240.0,101230.0,0.05487104]
[1762283559320,0.19893487,101240.0,101230.0,0.25244093]
[1762283559536,0.19893487,101240.0,101230.0,0.05487104]
[1762283559923,0.19893487,101240.0,101230.0,0.25244093]
[1762283560120,0.19893487,101240.0,101230.0,0.05487104]
[1762283560686,0.19893487,101240.0,101230.0,0.00987104]
[1762283560895,0.19759996,101220.0,101210.0,0.00987104]
[1762283562171,0.29540996,101220.0,101210.0,0.00987104]
[1762283562378,0.19760893,101210.0,101200.0,0.07333258]
[1762283562610,0.66416893,101210.0,101200.0,0.07333258]
[1762283562794,0.19766002,101190.0,101170.0,0.20755682]
[1762283563016,0.19766752,101180.0,101160.0,0.20751629]
[1762283563210,0.1977066,101160.0,101150.0,0.05487104]
[1762283563444,0.19768706,101170.0,101150.0,0.24272541]
[1762283563571,0.19768706,101170.0,101160.0,0.1977066]
[1762283563802,0.1977066,101160.0,101150.0,0.24272541]
[1762283564002,0.1977066,101160.0,101150.0,0.24287089]
[1762283564685,0.19768706,101170.0,101150.0,0.24287089]
[1762283564686,0.19768706,101170.0,101160.0,0.1977066]
[1762283564893,0.1977066,101160.0,101150.0,0.04514475]
[1762283565147,0.1977066,101160.0,101150.0,0.00014475]
[1762283565356,0.1977066,101160.0,101100.0,1.32009552]
[1762283565357,1.45257459,101160.0,101100.0,0.02342879]
[1762283565579,1.45257459,101160.0,101110.0,0.19780437]
[1762283565580,0.2076901,101130.0,101110.0,0.19780437]
[1762283565778,0.22653629,101140.0,101100.0,1.00634316]
[1762283565988,0.34,101140.0,101120.0,0.19778434]
[1762283566207,0.19774576,101140.0,101110.0,0.77471934]
[1762283566412,0.19778481,101120.0,101100.0,1.10410921]
[1762283566622,0.19778481,101120.0,101110.0,0.19780437]
[1762283566813,0.19778481,101120.0,101100.0,0.02391126]
[1762283566814,0.19780437,101110.0,101100.0,0.02391126]
[1762283567055,0.19780437,101110.0,101100.0,0.02991126]
[1762283567265,0.19780437,101110.0,101100.0,0.22173519]
[1762283567471,0.19780437,101110.0,101100.0,0.02391126]
[1762283567674,0.19780437,101110.0,101100.0,0.22173519]
[1762283568088,0.30542122,101130.0,101110.0,0.19780437]
[1762283568302,0.20765517,101130.0,101110.0,0.19780437]
[1762283568510,0.19778481,101120.0,101110.0,0.19780437]
[1762283568953,0.20765517,101130.0,101120.0,0.19778481]
[1762283569154,0.19776525,101130.0,101120.0,0.19778481]
[1762283569306,0.19776525,101130.0,101110.0,0.19780437]
[1762283569524,0.19776525,101130.0,101120.0,0.19778481]
[1762283569851,0.20763304,101140.0,101120.0,0.19778481]
[1762283570090,0.19774569,101140.0,101130.0,0.19776525]
[1762283570576,0.20765895,101150.0,101140.0,0.19774569]
[1762283570803,0.19772614,101150.0,101140.0,0.19774569]
[1762283571010,0.19772614,101150.0,101130.0,0.97248459]
[1762283571211,0.19772614,101150.0,101130.0,0.19776525]
[1762283571420,0.24273889,101170.0,101140.0,0.19774569]
[1762283571622,0.30535811,101160.0,101130.0,0.20765351]
[1762283571832,0.30535811,101160.0,101140.0,0.00014489]
[1762283571833,0.19772614,101150.0,101140.0,0.00014489]
[1762283572175,0.31977614,101150.0,101140.0,0.00014489]
[1762283572595,0.26384614,101150.0,101140.0,0.00014489]
[1762283573187,0.22686614,101150.0,101140.0,0.00014489]
[1762283573397,0.22786614,101150.0,101140.0,0.00014489]
[1762283573583,0.22686614,101150.0,101140.0,0.00014489]
[1762283573809,0.22886614,101150.0,101140.0,0.00014489]
[1762283574206,0.19972614,101150.0,101140.0,0.00014489]
[1762283574987,0.31977614,101150.0,101140.0,0.00014489]
[1762283575192,1.43449548,101150.0,101140.0,0.00014489]
[1762283575552,0.19778266,101190.0,101140.0,0.00014489]
[1762283575553,0.70088596,101290.0,101140.0,0.00014489]
[1762283575755,0.35488219,101150.0,101140.0,0.00014489]
[1762283575964,0.35488219,101150.0,101140.0,0.24644489]
[1762283575965,0.09776605,101150.0,101140.0,0.24644489]
[1762283576174,0.09776605,101170.0,101140.0,0.24644489]
[1762283576175,0.1076504,101170.0,101140.0,1.04116421]
[1762283576428,0.1076504,101170.0,101160.0,0.77471934]
[1762283576429,0.09776605,101170.0,101160.0,0.77471934]
[1762283577197,0.09776605,101190.0,101170.0,0.19768633]
[1762283577395,0.09776605,101210.0,101180.0,0.77471934]
[1762283577599,0.10757524,101210.0,101200.0,0.77471934]
[1762283577802,0.30518417,101210.0,101200.0,0.77471934]
[1762283578010,0.10757524,101210.0,101200.0,0.77471934]
[1762283578604,0.09791083,101210.0,101190.0,0.01999998]
[1762283578803,0.29552286,101210.0,101190.0,0.07972998]
[1762283579146,0.29952265,101210.0,101180.0,0.02999997]
[1762283579291,0.10191083,101210.0,101190.0,0.01999998]
[1762283579495,0.87663017,101210.0,101200.0,0.0278]
[1762283579700,0.77886412,101210.0,101200.0,0.04779998]
[1762283579902,1.11486412,101210.0,101200.0,0.01999998]
[1762283580104,0.00014478,101210.0,101200.0,0.26629998]
[1762283580332,0.77486412,101210.0,101200.0,0.26629998]
[1762283580535,0.00014478,101210.0,101200.0,0.26629998]
[1762283580737,0.39,101270.0,101260.0,1.86486742]
[1762283580974,3.66628482,101270.0,101260.0,2.01436742]
[1762283581178,2.92024232,101270.0,101260.0,0.1495]
[1762283581350,0.82124501,101270.0,101260.0,0.1495]
[1762283582154,0.82124501,101270.0,101260.0,0.1505]
[1762283582155,0.83224501,101270.0,101260.0,0.1505]
[1762283582355,0.83224501,101270.0,101260.0,0.1495]
[1762283582356,0.82124501,101270.0,101260.0,0.1495]
[1762283582669,0.78520501,101270.0,101260.0,0.1505]
[1762283582926,0.01048567,101270.0,101260.0,0.21448228]
[1762283583098,0.00148567,101270.0,101260.0,0.14371226]
[1762283583552,0.00148567,101270.0,101260.0,0.3512236]
[1762283583553,0.00848567,101270.0,101260.0,0.3512236]
[1762283583762,0.00848567,101270.0,101260.0,0.3762236]
[1762283583969,0.00848567,101270.0,101260.0,0.17871225]
[1762283584205,0.00848567,101270.0,101260.0,0.18858329]
[1762283584409,0.00848567,101270.0,101260.0,0.15371225]
[1762283584628,0.00148567,101270.0,101260.0,0.15371225]
[1762283584882,0.00448567,101270.0,101260.0,0.08122228]
[1762283585084,0.00448567,101270.0,101230.0,0.06279999]
[1762283585085,0.34,101260.0,101230.0,0.06279999]
[1762283585306,0.77471934,101250.0,101230.0,0.10283997]
[1762283585517,1.11471934,101250.0,101230.0,0.07284]
[1762283585733,1.11471934,101250.0,101230.0,0.0278]
[1762283585952,1.11471934,101250.0,101240.0,0.05618226]
[1762283586373,0.34050144,101250.0,101240.0,0.05618226]
[1762283586584,0.00050144,101250.0,101240.0,0.05618226]
[1762283586760,0.00050144,101250.0,101240.0,0.11591226]
[1762283586992,0.00050144,101250.0,101240.0,1.19594801]
[1762283587204,0.00050144,101250.0,101240.0,1.02339764]
[1762283587410,0.00050144,101250.0,101240.0,1.22094801]
[1762283587596,0.00050144,101250.0,101240.0,1.23081905]
[1762283587825,0.00350144,101250.0,101240.0,1.2174237]
[1762283588070,0.00350144,101250.0,101240.0,0.99487333]
[1762283588272,0.00350144,101250.0,101240.0,0.91223624]
[1762283588474,0.00350144,101250.0,101240.0,0.35833366]
[1762283588682,0.00150144,101250.0,101240.0,1.11965765]
[1762283588885,0.00048298,101270.0,101260.0,0.06618225]
[1762283589084,0.00048298,101270.0,101260.0,0.92534624]
[1762283589518,0.00048298,101270.0,101260.0,0.13902225]
[1762283589726,0.00048298,101270.0,101260.0,0.98511569]
[1762283590068,0.00048298,101270.0,101260.0,0.11122225]
[1762283591099,0.00148298,101270.0,101260.0,0.11122225]
[1762283591305,0.00048298,101270.0,101260.0,0.2687183]
[1762283591667,0.00148298,101270.0,101260.0,1.25259309]
[1762283591863,0.00148298,101270.0,101260.0,0.95731569]
[1762283592106,0.00148298,101270.0,101260.0,1.15482704]
[1762283592517,0.00048298,101270.0,101260.0,0.13622225]
[1762283592690,0.00048298,101270.0,101260.0,0.72332175]
[1762283592915,0.00048298,101270.0,101260.0,0.95583309]
[1762283593278,0.00048298,101270.0,101260.0,1.00459413]
[1762283593815,0.10740431,101320.0,101290.0,0.08118226]
[1762283593994,0.10754922,101320.0,101290.0,0.68855175]
[1762283594200,0.10754922,101320.0,101290.0,0.78608174]
[1762283594388,0.10754922,101320.0,101290.0,0.22371225]
[1762283594585,0.10754922,101320.0,101290.0,0.76108174]
[1762283594785,0.00125286,101300.0,101290.0,0.76108174]
[1762283594987,0.00125286,101300.0,101290.0,0.78608174]
[1762283595195,0.00125286,101300.0,101290.0,0.82497174]
[1762283595459,0.00125286,101300.0,101290.0,0.79997174]
[1762283595647,0.00125286,101300.0,101290.0,0.82497174]
[1762283595867,0.00125286,101300.0,101290.0,0.78608174]
[1762283596214,0.00125286,101300.0,101290.0,0.10114226]
[1762283596414,0.00125286,101300.0,101290.0,0.01999998]
[1762283596557,0.00125286,101300.0,101280.0,0.045]
[1762283596558,0.34125286,101300.0,101280.0,0.045]
[1762283596760,0.34,101300.0,101280.0,0.06499998]
[1762283596968,0.34,101300.0,101290.0,0.01999998]
[1762283597722,0.44748069,101320.0,101290.0,0.01999998]
[1762283597866,0.002,101300.0,101290.0,0.01999998]
[1762283598046,0.54205675,101320.0,101290.0,0.01999998]
[1762283598247,1.10442624,101320.0,101290.0,0.01999998]
[1762283598527,0.001,101300.0,101290.0,0.01999998]
[1762283598833,1.10442624,101320.0,101290.0,0.01999998]
[1762283598834,0.09776605,101310.0,101290.0,0.01999998]
[1762283599023,0.02216,101300.0,101290.0,0.01999998]
[1762283599242,0.09776605,101310.0,101290.0,0.01999998]
[1762283599524,0.02216,101320.0,101290.0,0.61855175]
[1762283599525,0.11992605,101320.0,101290.0,0.61855175]
[1762283599742,0.12991769,101320.0,101290.0,0.61855175]
[1762283599958,0.12991769,101320.0,101300.0,0.01999998]
[1762283600097,0.16424605,101320.0,101300.0,0.01999998]
[1762283600525,0.11992605,101320.0,101300.0,0.01999998]
[1762283600731,0.12392605,101320.0,101300.0,0.01999998]
[1762283600893,0.11992605,101320.0,101300.0,0.58236947]
[1762283601101,0.09776605,101340.0,101300.0,0.82866947]
[1762283601387,0.002,101320.0,101310.0,0.2089083]
[1762283601583,0.59776605,101360.0,101310.0,0.68851175]
[1762283601584,0.34,101350.0,101310.0,0.68851175]
[1762283601791,0.56236949,101350.0,101320.0,0.01999998]
[1762283602007,0.56236949,101350.0,101320.0,0.26629998]
[1762283602008,0.43776605,101340.0,101320.0,0.26629998]
[1762283602214,1.19749182,101340.0,101320.0,0.2463]
[1762283602441,0.56437347,101330.0,101320.0,0.2463]
[1762283602904,0.00200398,101330.0,101320.0,0.2463]
[1762283604426,0.00200398,101330.0,101320.0,0.26629998]
[1762283604869,0.00200398,101330.0,101320.0,0.82866947]
[1762283605277,0.00200398,101330.0,101320.0,0.26629998]
[1762283605488,0.09776605,101360.0,101320.0,0.85566949]
[1762283605688,0.002,101330.0,101320.0,1.25874614]
[1762283605889,0.002,101330.0,101320.0,0.99500174]
[1762283606092,0.002,101330.0,101320.0,0.89501174]
[1762283606505,0.002,101330.0,101320.0,0.26064225]
[1762283606705,0.002,101330.0,101320.0,0.8223274]
[1762283606920,0.002,101330.0,101320.0,0.9873874]
[1762283607128,0.09776605,101360.0,101330.0,0.05618226]
[1762283607341,0.12356567,101360.0,101330.0,0.05618226]
[1762283607549,0.34,101350.0,101340.0,0.02624706]
[1762283607753,0.34,101350.0,101340.0,0.04715897]
[1762283607900,0.3405007,101350.0,101330.0,0.11748162]
[1762283608101,0.34,101350.0,101330.0,0.64411447]
[1762283608314,0.34,101350.0,101330.0,0.74410447]
[1762283608522,0.00958434,101370.0,101330.0,0.95134622]
[1762283608901,0.34014472,101370.0,101340.0,0.58168513]
[1762283609561,0.004,101360.0,101350.0,0.56168515]
[1762283609765,0.004,101360.0,101350.0,0.64486743]
[1762283609972,0.004,101360.0,101350.0,0.8848874]
[1762283610173,0.00014472,101370.0,101350.0,0.8848874]
[1762283610386,0.00014472,101370.0,101360.0,0.03618228]
[1762283610596,0.00014472,101370.0,101360.0,0.89569347]
[1762283610880,0.00014472,101370.0,101360.0,0.6278674]
[1762283611098,0.00014472,101370.0,101360.0,0.7929274]
[1762283611299,0.00014472,101370.0,101360.0,0.6278674]
[1762283611680,0.00014472,101370.0,101360.0,0.06618225]
[1762283612326,0.00014472,101370.0,101360.0,0.05618226]
[1762283612603,0.00014472,101370.0,101360.0,0.10114226]
[1762283613219,0.00014472,101370.0,101360.0,0.89142117]
[1762283613361,0.00014472,101370.0,101360.0,0.95260345]
[1762283613767,0.00114592,101370.0,101360.0,0.95260345]
[1762283614454,0.00114592,101370.0,101360.0,0.86195345]
[1762283614642,0.00114592,101370.0,101360.0,0.10114226]
[1762283614816,0.00114592,101370.0,101360.0,0.08114228]
[1762283615961,0.28981197,101380.0,101360.0,0.32744228]
[1762283616166,0.29029417,101380.0,101360.0,0.47694228]
[1762283616375,0.29029417,101380.0,101360.0,0.44076]
[1762283616581,0.09824825,101380.0,101360.0,0.3958]
[1762283617003,0.8572117,101380.0,101360.0,0.1495]
[1762283617251,0.6599334,101380.0,101360.0,0.1495]
[1762283617466,0.6599334,101380.0,101360.0,0.1515]
[1762283617676,0.09824825,101380.0,101360.0,0.1515]
[1762283617848,0.43824825,101380.0,101360.0,0.1515]
[1762283618173,0.43824825,101380.0,101360.0,0.1495]
[1762283618749,0.43824825,101380.0,101360.0,0.3958]
[1762283619376,0.44024825,101380.0,101360.0,0.3958]
[1762283621157,0.53482431,101380.0,101360.0,0.3958]
[1762283621332,1.09650946,101380.0,101360.0,0.3958]
[1762283621535,0.44024825,101380.0,101360.0,0.3958]
[1762283622240,0.44024825,101380.0,101360.0,0.1495]
[1762283622418,0.43824825,101380.0,101360.0,0.1495]
[1762283622781,0.44024825,101380.0,101360.0,0.1495]
[1762283622980,0.44985035,101380.0,101360.0,0.1495]
[1762283623238,0.45185035,101380.0,101360.0,0.1495]
[1762283623372,0.3444822,101380.0,101360.0,0.1495]
[1762283623577,0.0044822,101380.0,101360.0,0.76618512]
[1762283623892,0.0044822,101380.0,101360.0,0.8930174]
[1762283624097,0.0004822,101380.0,101370.0,0.08110228]
[1762283624298,0.02216,101390.0,101380.0,0.1490178]
[1762283624521,0.02216,101390.0,101380.0,0.79375523]
[1762283624730,0.34,101410.0,101380.0,0.97576523]
[1762283624928,0.3401446,101410.0,101380.0,0.97576523]
[1762283625277,0.3401446,101410.0,101380.0,0.86011523]
[1762283625495,0.3401446,101410.0,101380.0,0.96076522]
[1762283625668,0.3401446,101410.0,101390.0,0.03618228]
[1762283626015,0.0041446,101410.0,101390.0,0.03618228]
[1762283626287,0.0001446,101410.0,101390.0,0.03618228]
[1762283626733,0.35719389,101420.0,101390.0,0.03618228]
[1762283626935,0.45176995,101420.0,101390.0,0.03632688]
[1762283627145,0.002,101410.0,101390.0,0.03632688]
[1762283628103,0.01191369,101410.0,101390.0,0.18534468]
[1762283628323,0.01191369,101410.0,101390.0,0.84767982]
[1762283628324,0.002,101410.0,101390.0,0.84767982]
[1762283628605,0.09776605,101420.0,101390.0,0.84767982]
[1762283628746,0.09776605,101420.0,101390.0,0.70866201]
[1762283628747,0.10176605,101420.0,101390.0,0.70866201]
[1762283629120,3.0,101430.0,101400.0,0.69725515]
[1762283629410,0.09776605,101440.0,101410.0,0.60855515]
[1762283629655,0.00998028,101430.0,101420.0,0.03618228]
[1762283629876,0.10754265,101440.0,101410.0,0.07686997]
[1762283630085,0.10754265,101440.0,101410.0,0.03618228]
[1762283630086,0.34,101430.0,101410.0,0.03618228]
[1762283630242,0.00125064,101420.0,101400.0,0.02999997]
[1762283630420,3.34,101420.0,101400.0,0.03618228]
[1762283630630,0.43457606,101420.0,101400.0,0.03618228]
[1762283630966,0.53234211,101420.0,101390.0,0.0001446]
[1762283631213,0.53234211,101420.0,101390.0,0.58182973]
[1762283631423,0.00986778,101430.0,101410.0,0.01999998]
[1762283631424,0.34986778,101430.0,101410.0,0.01999998]
[1762283631863,0.34986778,101430.0,101410.0,0.03618228]
[1762283632275,0.34986778,101430.0,101400.0,0.03618228]
[1762283632482,0.004,101420.0,101400.0,0.04618227]
[1762283632680,0.004,101420.0,101400.0,0.03618228]
[1762283632886,0.004,101420.0,101400.0,0.04618227]
[1762283633079,0.004,101420.0,101400.0,0.05618226]
[1762283633282,0.34986778,101430.0,101400.0,0.05618226]
[1762283633530,0.44444384,101430.0,101400.0,0.05618226]
[1762283634536,0.002,101420.0,101400.0,0.05618226]
[1762283634748,0.09976605,101420.0,101400.0,0.05618226]
[1762283635103,0.09776605,101420.0,101400.0,0.18568228]
[1762283635543,0.09776605,101420.0,101400.0,0.1495]
[1762283635769,0.34100061,101410.0,101400.0,0.1495]
[1762283636932,1.09990496,101410.0,101400.0,0.1495]
[1762283637118,0.53821981,101410.0,101400.0,0.1495]
[1762283637318,1.09990496,101410.0,101400.0,0.1495]
[1762283637757,0.90268576,101410.0,101400.0,0.1495]
[1762283637965,1.01531099,101410.0,101400.0,0.1495]
[1762283638313,1.21453019,101410.0,101400.0,0.1495]
[1762283638723,4.21453019,101410.0,101400.0,0.1495]
[1762283639136,4.21253019,101410.0,101400.0,0.1495]
[1762283639581,4.21653019,101410.0,101400.0,0.1495]